fUST/lending_fUST_20240919
["ID","MTS","AMOUNT","RATE_DAILY","PERIOD"]
[338482031,1726690243871,-881.97,0.00019178,2]
[338482032,1726690243881,-500.0,0.00019178,2]
[338482033,1726690243891,-500.0,0.00019178,2]
[338482034,1726690243902,-500.0,0.00019178,2]
[338482035,1726690243912,-500.0,0.00019178,2]
[338482036,1726690243925,-500.0,0.00019178,2]
[338482037,1726690243935,-500.0,0.00019178,2]
[338482038,1726690243947,-899.24,0.00019178,2]
[338482039,1726690243960,-899.24,0.00019178,2]
[338482040,1726690243970,-899.24,0.00019178,2]
[338482041,1726690243979,-899.24,0.00019178,2]
[338482042,1726690243990,-500.0,0.00019178,2]
[338482043,1726690244001,-899.24,0.00019178,2]
[338482044,1726690244011,-899.24,0.00019178,2]
[338482045,1726690244022,-899.24,0.00019178,2]
[338482046,1726690244032,-899.24,0.00019178,2]
[338482047,1726690244043,-500.0,0.00019178,2]
[338482048,1726690244054,-899.24,0.00019178,2]
[338482049,1726690244064,-899.24,0.00019178,2]
[338482050,1726690244074,-899.24,0.00019178,2]
[338482051,1726690244083,-899.24,0.00019178,2]
[338482052,1726690244093,-899.24,0.00019178,2]
[338482053,1726690244102,-899.24,0.00019178,2]
[338482054,1726690244111,-2012.23,0.00019178,2]
[338482055,1726690244120,-899.24,0.00019178,2]
[338482056,1726690244130,-577.87,0.00019178,2]
[338482057,1726690244139,-759.83,0.00019178,2]
[338482058,1726690244148,-899.24,0.00019178,2]
[338482059,1726690244157,-899.24,0.00019178,2]
[338482060,1726690244167,-899.24,0.00019178,2]
[338482061,1726690244176,-500.0,0.00019178,2]
[338482062,1726690244185,-899.24,0.00019178,2]
[338482063,1726690244194,-500.0,0.00019178,2]
[338482064,1726690244207,-500.0,0.00019178,2]
[338482065,1726690244216,-899.24,0.00019178,2]
[338482066,1726690244225,-1681.86,0.00019178,2]
[338482067,1726690244235,-500.0,0.00019178,2]
[338482068,1726690244244,-899.24,0.00019178,2]
[338482069,1726690244253,-899.24,0.00019178,2]
[338482070,1726690244263,-500.0,0.00019178,2]
[338482071,1726690244272,-899.24,0.00019178,2]
[338482072,1726690244281,-500.0,0.00019178,2]
[338482073,1726690244290,-640.22207552,0.00019178,2]
[338482074,1726690244299,-899.32634633,0.00019178,2]
[338482075,1726690244309,-1344.5,0.00019178,2]
[338482076,1726690244318,-500.0,0.00019178,2]
[338482077,1726690244327,-1222.23,0.00019178,2]
[338482078,1726690244336,-1424.91,0.00019178,2]
[338482079,1726690244346,-711.37,0.00019178,2]
[338482080,1726690244355,-60862.16653551,0.00019178,2]
[338482084,1726690245402,-1421.94,0.00019178,2]
[338482085,1726690245412,-500.0,0.00019178,2]
[338482086,1726690245421,-500.0,0.00019178,2]
[338482088,1726690245431,-500.0,0.00019178,2]
[338482089,1726690245439,-1720.35,0.00019178,2]
[338482090,1726690245449,-500.0,0.00019178,2]
[338482091,1726690245459,-500.0,0.00019178,2]
[338482092,1726690245468,-500.0,0.00019178,2]
[338482093,1726690245477,-500.0,0.00019178,2]
[338482094,1726690245487,-1102.45,0.00019178,2]
[338482095,1726690245497,-500.0,0.00019178,2]
[338482096,1726690245507,-500.0,0.00019178,2]
[338482097,1726690245517,-500.0,0.00019178,2]
[338482098,1726690245526,-1006.23,0.00019178,2]
[338482099,1726690245536,-500.0,0.00019178,2]
[338482100,1726690245547,-500.0,0.00019178,2]
[338482101,1726690245556,-500.0,0.00019178,2]
[338482102,1726690245567,-500.0,0.00019178,2]
[338482103,1726690245578,-500.0,0.00019178,2]
[338482104,1726690245587,-1668.58,0.00019178,2]
[338482105,1726690245595,-500.0,0.00019178,2]
[338482106,1726690245605,-9916.41,0.00019178,2]
[338482107,1726690245614,-829.02,0.00019178,2]
[338482108,1726690245623,-210.20224572,0.00019178,2]
[338482109,1726690245632,-1228.71,0.00019178,2]
[338482110,1726690245641,-1035.73,0.00019178,2]
[338482111,1726690245649,-1528.13,0.00019178,2]
[338482112,1726690245659,-500.0,0.00019178,2]
[338482113,1726690245668,-806.37,0.00019178,2]
[338482114,1726690245679,-757.74,0.00019178,2]
[338482115,1726690245689,-500.0,0.00019178,2]
[338482116,1726690245700,-1060.96,0.00019178,2]
[338482117,1726690245712,-1060.96,0.00019178,2]
[338482118,1726690245722,-1060.96,0.00019178,2]
[338482119,1726690245731,-1830.39,0.00019178,2]
[338482120,1726690245742,-382.8278938,0.00019178,2]
[338482121,1726690245752,-1060.96,0.00019178,2]
[338482122,1726690245761,-1060.96,0.00019178,2]
[338482123,1726690245770,-1060.96,0.00019178,2]
[338482124,1726690245779,-500.0,0.00019178,2]
[338482125,1726690245788,-500.0,0.00019178,2]
[338482126,1726690245797,-1060.96,0.00019178,2]
[338482127,1726690245806,-2638.44,0.00019178,2]
[338482128,1726690245816,-1060.96,0.00019178,2]
[338482129,1726690245827,-1060.96,0.00019178,2]
[338482130,1726690245837,-1060.96,0.00019178,2]
[338482131,1726690245847,-1060.96,0.00019178,2]
[338482132,1726690245858,-756.43,0.00019178,2]
[338482133,1726690245868,-1060.96,0.00019178,2]
[338482134,1726690245878,-1060.96,0.00019178,2]
[338482136,1726690245889,-1060.96,0.00019178,2]
[338482138,1726690245899,-1060.96,0.00019178,2]
[338482140,1726690245908,-500.0,0.00019178,2]
[338482143,1726690245921,-500.0,0.00019178,2]
[338482145,1726690245931,-1060.96,0.00019178,2]
[338482146,1726690245941,-1060.96,0.00019178,2]
[338482148,1726690245950,-1060.96,0.00019178,2]
[338482151,1726690245963,-762.76,0.00019178,2]
[338482153,1726690245972,-1060.96,0.00019178,2]
[338482155,1726690245983,-1060.96,0.00019178,2]
[338482157,1726690245994,-1060.96,0.00019178,2]
[338482159,1726690246004,-1060.96,0.00019178,2]
[338482161,1726690246015,-500.0,0.00019178,2]
[338482163,1726690246025,-858.88,0.00019178,2]
[338482166,1726690246037,-1060.96,0.00019178,2]
[338482168,1726690246048,-1089.36,0.00019178,2]
[338482170,1726690246057,-1061.06086616,0.00019178,2]
[338482172,1726690246067,-1241.15,0.00019178,2]
[338482174,1726690246078,-2924.03,0.00019178,2]
[338482176,1726690246089,-1469.38,0.00019178,2]
[338482178,1726690246099,-500.0,0.00019178,2]
[338482180,1726690246108,-618.69,0.00019178,2]
[338482182,1726690246117,-500.0,0.00019178,2]
[338482185,1726690246128,-595.67,0.00019178,2]
[338482187,1726690246137,-500.0,0.00019178,2]
[338482189,1726690246147,-743.11,0.00019178,2]
[338482191,1726690246157,-664.27,0.00019178,2]
[338482193,1726690246167,-500.0,0.00019178,2]
[338482195,1726690246177,-500.0,0.00019178,2]
[338482197,1726690246187,-500.0,0.00019178,2]
[338482199,1726690246196,-572.89102883,0.00019178,2]
[338482201,1726690246206,-2243.02,0.00019178,2]
[338482203,1726690246218,-604.51,0.00019178,2]
[338482205,1726690246228,-500.0,0.00019178,2]
[338482207,1726690246237,-500.0,0.00019178,2]
[338482210,1726690246248,-1291.06,0.00019178,2]
[338482212,1726690246258,-500.0,0.00019178,2]
[338482214,1726690246268,-1578.37,0.00019178,2]
[338482216,1726690246277,-500.0,0.00019178,2]
[338482218,1726690246286,-500.0,0.00019178,2]
[338482220,1726690246295,-500.0,0.00019178,2]
[338482222,1726690246305,-657.35,0.00019178,2]
[338482224,1726690246314,-500.0,0.00019178,2]
[338482226,1726690246324,-1450.37,0.00019178,2]
[338482228,1726690246333,-500.0,0.00019178,2]
[338482230,1726690246342,-500.0,0.00019178,2]
[338482232,1726690246351,-5575.24,0.00019178,2]
[338482234,1726690246360,-500.0,0.00019178,2]
[338482236,1726690246369,-873.67,0.00019178,2]
[338482238,1726690246378,-3353.74,0.00019178,2]
[338482240,1726690246387,-500.0,0.00019178,2]
[338482242,1726690246396,-1089.57,0.00019178,2]
[338482244,1726690246405,-500.0,0.00019178,2]
[338482246,1726690246414,-1166.85,0.00019178,2]
[338482248,1726690246423,-736.39,0.00019178,2]
[338482250,1726690246433,-500.0,0.00019178,2]
[338482252,1726690246443,-2181.77,0.00019178,2]
[338482254,1726690246452,-679.71,0.00019178,2]
[338482256,1726690246462,-500.0,0.00019178,2]
[338482258,1726690246471,-500.0,0.00019178,2]
[338482260,1726690246481,-500.0,0.00019178,2]
[338482262,1726690246490,-500.0,0.00019178,2]
[338482264,1726690246499,-602.68751227,0.00019178,2]
[338482266,1726690246508,-6373.96,0.00019178,2]
[338482268,1726690246518,-500.0,0.00019178,2]
[338482270,1726690246530,-500.0,0.00019178,2]
[338482272,1726690246539,-500.0,0.00019178,2]
[338482274,1726690246548,-742.01,0.00019178,2]
[338482276,1726690246557,-708.89,0.00019178,2]
[338482278,1726690246568,-500.0,0.00019178,2]
[338482280,1726690246577,-500.0,0.00019178,2]
[338482282,1726690246586,-500.0,0.00019178,2]
[338482284,1726690246595,-1096.08,0.00019178,2]
[338482286,1726690246604,-1117.62,0.00019178,2]
[338482288,1726690246613,-756.07,0.00019178,2]
[338482290,1726690246622,-500.0,0.00019178,2]
[338482292,1726690246631,-1268.85,0.00019178,2]
[338482294,1726690246640,-500.0,0.00019178,2]
[338482296,1726690246649,-1232.52,0.00019178,2]
[338482298,1726690246658,-1637.94,0.00019178,2]
[338482300,1726690246667,-500.0,0.00019178,2]
[338482302,1726690246677,-500.0,0.00019178,2]
[338482304,1726690246686,-889.59,0.00019178,2]
[338482306,1726690246696,-2221.87,0.00019178,2]
[338482308,1726690246705,-500.0,0.00019178,2]
[338482310,1726690246723,-500.0,0.00019178,2]
[338482312,1726690246733,-1324.37,0.00019178,2]
[338482314,1726690246743,-1283.73,0.00019178,2]
[338482316,1726690246753,-500.0,0.00019178,2]
[338482318,1726690246762,-500.0,0.00019178,2]
[338482320,1726690246772,-500.0,0.00019178,2]
[338482322,1726690246781,-500.0,0.00019178,2]
[338482324,1726690246790,-2112.5,0.00019178,2]
[338482326,1726690246800,-500.0,0.00019178,2]
[338482328,1726690246810,-500.0,0.00019178,2]
[338482330,1726690246819,-500.0,0.00019178,2]
[338482332,1726690246828,-500.0,0.00019178,2]
[338482334,1726690246838,-600.32,0.00019178,2]
[338482336,1726690246847,-635.93,0.00019178,2]
[338482338,1726690246857,-5527.92,0.00019178,2]
[338482340,1726690246867,-500.0,0.00019178,2]
[338482342,1726690246877,-500.0,0.00019178,2]
[338482344,1726690246887,-500.0,0.00019178,2]
[338482346,1726690246898,-500.0,0.00019178,2]
[338482348,1726690246909,-500.0,0.00019178,2]
[338482350,1726690246923,-500.0,0.00019178,2]
[338482352,1726690246939,-566.22,0.00019178,2]
[338482354,1726690246949,-500.0,0.00019178,2]
[338482356,1726690246961,-500.0,0.00019178,2]
[338482358,1726690246977,-1471.22,0.00019178,2]
[338482360,1726690246986,-1105.8,0.00019178,2]
[338482381,1726690247184,-532.18461076,0.00019178,2]
[338482383,1726690247195,-500.0,0.00019178,2]
[338482385,1726690247205,-500.0,0.00019178,2]
[338482387,1726690247219,-500.0,0.00019178,2]
[338482389,1726690247228,-1145.76,0.00019178,2]
[338482391,1726690247238,-500.0,0.00019178,2]
[338482393,1726690247247,-500.0,0.00019178,2]
[338482395,1726690247256,-500.0,0.00019178,2]
[338482397,1726690247265,-500.0,0.00019178,2]
[338482399,1726690247274,-500.0,0.00019178,2]
[338482401,1726690247283,-500.0,0.00019178,2]
[338482403,1726690247293,-500.0,0.00019178,2]
[338482405,1726690247302,-733.34,0.00019178,2]
[338482407,1726690247311,-500.0,0.00019178,2]
[338482409,1726690247320,-856.01,0.00019178,2]
[338482411,1726690247329,-500.0,0.00019178,2]
[338482413,1726690247338,-500.0,0.00019178,2]
[338482415,1726690247347,-500.0,0.00019178,2]
[338482417,1726690247356,-500.0,0.00019178,2]
[338482419,1726690247365,-500.0,0.00019178,2]
[338482421,1726690247374,-500.0,0.00019178,2]
[338482423,1726690247383,-1073.87,0.00019178,2]
[338482425,1726690247392,-500.0,0.00019178,2]
[338482427,1726690247402,-1056.91,0.00019178,2]
[338482429,1726690247411,-1347.2,0.00019178,2]
[338482431,1726690247420,-500.0,0.00019178,2]
[338482433,1726690247429,-1369.71,0.00019178,2]
[338482435,1726690247439,-528.35,0.00019178,2]
[338482437,1726690247448,-1199.74,0.00019178,2]
[338482439,1726690247460,-500.0,0.00019178,2]
[338482441,1726690247469,-1016.51,0.00019178,2]
[338482443,1726690247478,-500.0,0.00019178,2]
[338482445,1726690247488,-631.2349965,0.00019178,2]
[338482447,1726690247499,-500.0,0.00019178,2]
[338482449,1726690247510,-500.0,0.00019178,2]
[338482451,1726690247519,-500.0,0.00019178,2]
[338482453,1726690247530,-734.86,0.00019178,2]
[338482456,1726690247542,-1330.72,0.00019178,2]
[338482458,1726690247552,-942.82,0.00019178,2]
[338482460,1726690247563,-500.0,0.00019178,2]
[338482462,1726690247574,-500.0,0.00019178,2]
[338482464,1726690247587,-822.6,0.00019178,2]
[338482466,1726690247597,-780.43,0.00019178,2]
[338482469,1726690247610,-500.0,0.00019178,2]
[338482471,1726690247623,-500.0,0.00019178,2]
[338482473,1726690247634,-1307.92,0.00019178,2]
[338482474,1726690247643,-1085.51,0.00019178,2]
[338482476,1726690247653,-500.0,0.00019178,2]
[338482478,1726690247663,-1251.58,0.00019178,2]
[338482481,1726690247675,-1328.88,0.00019178,2]
[338482483,1726690247685,-533.85,0.00019178,2]
[338482485,1726690247695,-500.0,0.00019178,2]
[338482487,1726690247704,-924.98,0.00019178,2]
[338482489,1726690247718,-1083.59,0.00019178,2]
[338482491,1726690247728,-500.0,0.00019178,2]
[338482493,1726690247738,-4885.62,0.00019178,2]
[338482496,1726690247754,-500.0,0.00019178,2]
[338482498,1726690247765,-500.0,0.00019178,2]
[338482500,1726690247775,-1207.93,0.00019178,2]
[338482502,1726690247784,-500.0,0.00019178,2]
[338482504,1726690247795,-242.71,0.00019178,2]
[338482506,1726690247805,-3061.85,0.00019178,2]
[338482508,1726690247815,-836.52,0.00019178,2]
[338482510,1726690247825,-500.0,0.00019178,2]
[338482513,1726690247836,-606.39,0.00019178,2]
[338482515,1726690247846,-1360.51,0.00019178,2]
[338482517,1726690247857,-753.22,0.00019178,2]
[338482519,1726690247867,-526.43,0.00019178,2]
[338482521,1726690247877,-151.0,0.00019178,2]
[338482523,1726690247886,-500.0,0.00019178,2]
[338482525,1726690247896,-500.0,0.00019178,2]
[338482527,1726690247906,-810.34,0.00019178,2]
[338482529,1726690247916,-500.0,0.00019178,2]
[338482531,1726690247929,-500.0,0.00019178,2]
[338482533,1726690247939,-500.0,0.00019178,2]
[338482535,1726690247950,-500.0,0.00019178,2]
[338482537,1726690247962,-641.28,0.00019178,2]
[338482539,1726690247972,-545.75,0.00019178,2]
[338482540,1726690247983,-128.61095908,0.00019178,2]
[338482541,1726690248004,-848.18971957,0.00019178,2]
[338482542,1726690248017,-1549.11932135,0.00019178,2]
[338482543,1726690248027,-500.0,0.00019178,2]
[338482544,1726690248037,-500.0,0.00019178,2]
[338482545,1726690248048,-1127.57,0.00019178,2]
[338482546,1726690248058,-500.0,0.00019178,2]
[338482547,1726690248067,-1186.88,0.00019178,2]
[338482548,1726690248077,-841.78,0.00019178,2]
[338482549,1726690248087,-500.0,0.00019178,2]
[338482550,1726690248097,-500.0,0.00019178,2]
[338482551,1726690248108,-1240.44,0.00019178,2]
[338482552,1726690248118,-2142.32,0.00019178,2]
[338482553,1726690248128,-500.0,0.00019178,2]
[338482554,1726690248138,-1173.23,0.00019178,2]
[338482555,1726690248148,-500.0,0.00019178,2]
[338482556,1726690248157,-1876.39,0.00019178,2]
[338482557,1726690248167,-1738.3612911,0.00019178,2]
[338482589,1726690248702,-1402.3987089,0.00019178,2]
[338482590,1726690248713,-500.0,0.00019178,2]
[338482591,1726690248723,-580.53,0.00019178,2]
[338482592,1726690248732,-500.0,0.00019178,2]
[338482593,1726690248742,-500.0,0.00019178,2]
[338482595,1726690248752,-500.0,0.00019178,2]
[338482597,1726690248762,-500.0,0.00019178,2]
[338482598,1726690248771,-980.94,0.00019178,2]
[338482599,1726690248780,-500.0,0.00019178,2]
[338482601,1726690248789,-500.0,0.00019178,2]
[338482602,1726690248799,-1112.36,0.00019178,2]
[338482604,1726690248808,-1277.77,0.00019178,2]
[338482606,1726690248818,-1154.27,0.00019178,2]
[338482608,1726690248828,-3514.59,0.00019178,2]
[338482609,1726690248837,-277.20909129,0.00019178,2]
[338482610,1726690248847,-500.0,0.00019178,2]
[338482611,1726690248857,-500.0,0.00019178,2]
[338482612,1726690248867,-500.0,0.00019178,2]
[338482613,1726690248878,-388.24547586,0.00019178,2]
[338482614,1726690248888,-2073.24,0.00019178,2]
[338482615,1726690248898,-16365.43,0.00019178,2]
[338482616,1726690248909,-500.0,0.00019178,2]
[338482617,1726690248922,-843.67,0.00019178,2]
[338482618,1726690248932,-500.0,0.00019178,2]
[338482619,1726690248942,-693.64,0.00019178,2]
[338482620,1726690248952,-918.94,0.00019178,2]
[338482621,1726690248964,-1710.05,0.00019178,2]
[338482622,1726690248974,-500.0,0.00019178,2]
[338482623,1726690248983,-1136.79,0.00019178,2]
[338482624,1726690248993,-151.0,0.00019178,2]
[338482625,1726690249002,-500.0,0.00019178,2]
[338482626,1726690249012,-2371.14,0.00019178,2]
[338482627,1726690249021,-296.28077995,0.00019178,2]
[338482628,1726690249030,-541.15,0.00019178,2]
[338482629,1726690249040,-639.1,0.00019178,2]
[338482630,1726690249050,-500.0,0.00019178,2]
[338482631,1726690249060,-500.0,0.00019178,2]
[338482632,1726690249070,-218.597743,0.00019178,2]
[338482633,1726690249079,-500.0,0.00019178,2]
[338482634,1726690249088,-500.0,0.00019178,2]
[338482635,1726690249098,-500.0,0.00019178,2]
[338482636,1726690249107,-218.597743,0.00019178,2]
[338482637,1726690249116,-500.0,0.00019178,2]
[338482638,1726690249126,-408.07594544,0.00019178,2]
[338482639,1726690249135,-164.007016,0.00019178,2]
[338482640,1726690249145,-15381.744258,0.00019178,2]
[338482641,1726690249154,-47245.56,0.000192,2]
[338482642,1726690249164,-142868.18,0.000192,2]
[338482643,1726690249174,-150.112233,0.000192,2]
[338482644,1726690249183,-150.112233,0.000192,2]
[338482645,1726690249192,-150.112233,0.000192,2]
[338482646,1726690249202,-150.112233,0.000192,2]
[338482647,1726690249212,-150.112233,0.000192,2]
[338482648,1726690249221,-150.112233,0.000192,2]
[338482649,1726690249231,-150.112233,0.000192,2]
[338482650,1726690249241,-150.112233,0.000192,2]
[338482651,1726690249250,-150.112233,0.000192,2]
[338482652,1726690249260,-150.112233,0.000192,2]
[338482653,1726690249270,-1941.0,0.000192,2]
[338482654,1726690249279,-151.0,0.000192,2]
[338482655,1726690249289,-151.0,0.000192,2]
[338482656,1726690249298,-151.0,0.000192,2]
[338482657,1726690249308,-151.0,0.000192,2]
[338482658,1726690249319,-151.0,0.000192,2]
[338482659,1726690249328,-931.997214,0.000192,2]
[338482660,1726690249338,-151.0,0.000192,2]
[338482661,1726690249348,-151.0,0.000192,2]
[338482662,1726690249357,-1096.559169,0.000192,2]
[338482663,1726690249366,-1096.559169,0.000192,2]
[338482664,1726690249376,-150.112233,0.000192,2]
[338482665,1726690249386,-151.0,0.000192,2]
[338482666,1726690249395,-150.112233,0.000192,2]
[338482667,1726690249404,-150.112233,0.000192,2]
[338482668,1726690249414,-150.112233,0.000192,2]
[338482669,1726690249424,-151.0,0.000192,2]
[338482670,1726690249434,-151.0,0.000192,2]
[338482671,1726690249444,-151.0,0.000192,2]
[338482672,1726690249453,-151.0,0.000192,2]
[338482673,1726690249463,-592.381331,0.000192,2]
[338482674,1726690249472,-592.381331,0.000192,2]
[338482675,1726690249481,-151.0,0.000192,2]
[338482676,1726690249491,-208.623487,0.000192,2]
[338482677,1726690249500,-151.0,0.000192,2]
[338482678,1726690249509,-567.092178,0.000192,2]
[338482679,1726690249519,-1023.01999,0.000192,2]
[338482680,1726690249528,-567.092178,0.000192,2]
[338482681,1726690249538,-1023.01999,0.000192,2]
[338482682,1726690249548,-151.0,0.000192,2]
[338482683,1726690249557,-151.0,0.000192,2]
[338482684,1726690249567,-151.0,0.000192,2]
[338482685,1726690249577,-151.0,0.000192,2]
[338482686,1726690249586,-244.618732,0.000192,2]
[338482687,1726690249595,-2488.83571,0.000192,2]
[338482688,1726690249605,-244.618732,0.000192,2]
[338482689,1726690249614,-2488.83571,0.000192,2]
[338482690,1726690249624,-821.386081,0.000192,2]
[338482691,1726690249634,-821.386081,0.000192,2]
[338482692,1726690249644,-151.0,0.000192,2]
[338482693,1726690249655,-3337.321848,0.000192,2]
[338482694,1726690249665,-151.0,0.000192,2]
[338482695,1726690249675,-3337.321848,0.000192,2]
[338482696,1726690249685,-151.0,0.000192,2]
[338482697,1726690249694,-738.995486,0.000192,2]
[338482698,1726690249704,-151.0,0.000192,2]
[338482699,1726690249715,-738.995486,0.000192,2]
[338482700,1726690249725,-151.0,0.000192,2]
[338482701,1726690249734,-394.855885,0.000192,2]
[338482702,1726690249744,-394.855885,0.000192,2]
[338482703,1726690249754,-158.658831,0.000192,2]
[338482704,1726690249917,-158.658831,0.000192,2]
[338482705,1726690249929,-281.919359,0.000192,2]
[338482706,1726690249939,-252.961527,0.000192,2]
[338482707,1726690249949,-281.919359,0.000192,2]
[338482708,1726690249958,-252.961527,0.000192,2]
[338482709,1726690249974,-151.0,0.000192,2]
[338482710,1726690249983,-747.033258,0.000192,2]
[338482711,1726690249992,-747.033258,0.000192,2]
[338482712,1726690250003,-151.0,0.000192,2]
[338482713,1726690250012,-218.597743,0.000192,2]
[338482714,1726690250021,-218.597743,0.000192,2]
[338482715,1726690250030,-3943.07934254,0.000192,2]
[338482716,1726690250039,-500.0,0.00019215,2]
[338482717,1726690250048,-150.472,0.00019219,2]
[338482718,1726690250058,-213.971,0.00019219,2]
[338482719,1726690250067,-150.0,0.00019219,2]
[338482720,1726690250076,-150.301,0.00019219,2]
[338482721,1726690250085,-150.0,0.00019219,2]
[338482722,1726690250094,-524.0,0.00019219,2]
[338482723,1726690250103,-1216.0,0.00019219,2]
[338482724,1726690250112,-6322.79847141,0.00019321,2]
[338482725,1726690250121,-150.112233,0.000194,2]
[338482726,1726690250130,-238.471071,0.000194,2]
[338482727,1726690250140,-1263.34756958,0.00019407,2]
[338482728,1726690250149,-500.0,0.00019411,2]
[338482729,1726690250159,-500.0,0.00019452,2]
[338482730,1726690250169,-151.0,0.00019452,2]
[338482731,1726690250178,-151.0,0.00019452,2]
[338482732,1726690250187,-500.0,0.00019452,2]
[338482733,1726690250196,-492.15406028,0.00019452,2]
[338482734,1726690250206,-500.0,0.00019452,2]
[338482735,1726690250217,-500.0,0.00019452,2]
[338482736,1726690250226,-637.65,0.00019452,2]
[338482737,1726690250235,-500.0,0.00019452,2]
[338482738,1726690250244,-995.81,0.00019452,2]
[338482739,1726690250253,-500.0,0.00019452,2]
[338482740,1726690250263,-500.0,0.00019452,2]
[338482741,1726690250272,-500.0,0.00019452,2]
[338482742,1726690250281,-500.0,0.00019452,2]
[338482743,1726690250290,-500.0,0.00019452,2]
[338482744,1726690250300,-629.89,0.00019452,2]
[338482745,1726690250309,-3291.95,0.00019452,2]
[338482746,1726690250318,-500.0,0.00019452,2]
[338482747,1726690250327,-151.83855,0.00019452,2]
[338482748,1726690250336,-500.0,0.00019452,2]
[338482749,1726690250346,-500.0,0.00019452,2]
[338482750,1726690250355,-500.0,0.00019452,2]
[338482751,1726690250364,-500.0,0.00019452,2]
[338482752,1726690250374,-500.0,0.00019452,2]
[338482753,1726690250383,-500.0,0.00019452,2]
[338482755,1726690250392,-500.0,0.00019452,2]
[338482757,1726690250402,-500.0,0.00019452,2]
[338482759,1726690250411,-500.0,0.00019452,2]
[338482761,1726690250420,-500.0,0.00019452,2]
[338482763,1726690250429,-500.0,0.00019452,2]
[338482764,1726690250438,-500.0,0.00019452,2]
[338482766,1726690250447,-500.0,0.00019452,2]
[338482767,1726690250456,-500.0,0.00019452,2]
[338482768,1726690250467,-221.34104605,0.00019452,2]
[338482769,1726690250476,-151.0,0.00019452,2]
[338482771,1726690250485,-500.0,0.00019452,2]
[338482772,1726690250495,-591.88,0.00019452,2]
[338482773,1726690250505,-500.0,0.00019452,2]
[338482775,1726690250514,-500.0,0.00019452,2]
[338482777,1726690250524,-502.93,0.00019452,2]
[338482779,1726690250533,-500.0,0.00019452,2]
[338482780,1726690250543,-500.0,0.00019452,2]
[338482782,1726690250552,-151.0,0.00019452,2]
[338482783,1726690250562,-854.44,0.00019452,2]
[338482785,1726690250571,-1117.58,0.00019452,2]
[338482787,1726690250580,-151.0,0.00019452,2]
[338482788,1726690250589,-1030.89,0.00019452,2]
[338482790,1726690250598,-500.0,0.00019452,2]
[338482792,1726690250607,-500.0,0.00019452,2]
[338482794,1726690250617,-571.52,0.00019452,2]
[338482795,1726690250626,-827.65,0.00019452,2]
[338482797,1726690250635,-500.0,0.00019452,2]
[338482799,1726690250644,-500.0,0.00019452,2]
[338482800,1726690250653,-500.0,0.00019452,2]
[338482802,1726690250662,-1047.48,0.00019452,2]
[338482804,1726690250671,-661.37,0.00019452,2]
[338482805,1726690250681,-500.0,0.00019452,2]
[338482806,1726690250691,-1363.3,0.00019452,2]
[338482807,1726690250700,-500.0,0.00019452,2]